[Event "FIDE World Cup G12-B 2024"]
[Site "Batumi"]
[Date "2024.06.26"]
[Round "4.1"]
[White "Gunawardhana, Devindya Oshini"]
[Black "Amanzhol, Khanzada"]
[Result "1-0"]
[ECO "B23"]
[WhiteElo "1980"]
[BlackElo "1685"]
[Annotator "NA RC"]
[PlyCount "111"]
[EventDate "2024.06.23"]
[EventType "swiss"]
[EventCountry "GEO"]
[SourceTitle "playchess.com"]
[Source "ChessBase"]
[SourceQuality "1"]
[TimeControl "5400+30"]

1. e4 {[%emt 0:00:01]} c5 {[%emt 0:00:35]} 2. Nc3 {[%emt 0:00:10]} Nc6 {[%emt 0:00:44]} 3. Bb5 {[%emt 0:00:08]} g6 {[%emt 0:00:31]} 4. Bxc6 {[%emt 0:00:20]} dxc6 {[%emt 0:00:09]} 5. d3 {[%emt 0:00:11]} Bg7 {[%emt 0:01:03]} 6. Be3 {[%emt 0:00:45]} b6 {[%emt 0:02:12]} 7. Qd2 {[%emt 0:00:20]} e5 {[%emt 0:01:15] B23: Closed Sicilian: Lines without g3.} 8. Nge2 {[%emt 0:02:37]} Nf6 {[%emt 0:02:03] has lost popularity (8...h6).} 9. Bh6 {[%emt 0:02:24]} O-O {[%emt 0:03:49]} 10. Bxg7 {[%emt 0:00:37]} Kxg7 {[%emt 0:00:02]} 11. O-O-O {[%emt 0:01:21]} Qe7 {[%emt 0:01:57]} 12. f3 $146 {[%emt 0:03:28]} ({Predecessor:} 12. Ng3 Rd8 13. f4 exf4 14. Qxf4 Ng4 15. h3 Ne5 16. Rhe1 f6 17. Nf1 Be6 18. g4 {1-0 Alexieva,S (2261)-Docena,J (2061) Olympiad Women-40 2012 (6.3)}) 12... Rd8 {[%emt 0:02:12]} 13. Qe3 {[%emt 0:02:08]} b5 {[%emt 0:02:56]} 14. g4 {[%emt 0:03:12]} h5 {[%emt 0:12:12]} (14... a5 $11 {deserves consideration.}) 15. h3 {[%emt 0:07:02]} Rh8 {[%emt 0:10:08]} 16. Rdf1 {[%emt 0:11:27]} a5 {[%emt 0:04:25]} 17. g5 {[%emt 0:07:41]} Nh7 {[%emt 0:05:30]} 18. h4 {[%emt 0:00:07]} Rf8 {[%emt 0:03:21] [#]} (18... a4 $1 $11) 19. f4 {[%emt 0:07:40]} (19. a4 $1 $16) 19... Bd7 {[%emt 0:00:37]} (19... exf4 $16 20. Nxf4 a4) 20. f5 {[%emt 0:05:03]} Kh8 {[%emt 0:01:03]} 21. Ng3 {[%emt 0:01:07]} a4 {[%emt 0:03:55]} 22. Qf3 $16 {[%emt 0:09:43]} Rg8 {[%emt 0:09:23]} 23. Rhg1 {[%emt 0:04:36]} Raf8 {[%emt 0:07:32]} 24. Nd1 {[%emt 0:04:22]} f6 {[%emt 0:10:00]} 25. fxg6 {[%emt 0:10:10]} Bg4 {[%emt 0:02:50]} 26. Nf5 {[%emt 0:04:46]} Qd7 {[%emt 0:03:17]} 27. Qe3 {[%emt 0:03:39]} Rxg6 {[%emt 0:00:19]} 28. Qxc5 {[%emt 0:00:05]} Qe6 {[%emt 0:00:45]} 29. Nde3 {[%emt 0:03:50]} fxg5 {[%emt 0:01:12]} 30. Nxg4 {[%emt 0:03:12]} hxg4 {[%emt 0:00:07]} 31. h5 {[%emt 0:00:01]} Rgf6 {[%emt 0:00:48]} 32. a3 {[%emt 0:00:01]} Qe8 {[%emt 0:01:27]} 33. h6 {[%emt 0:00:57]} Qe6 {[%emt 0:02:35]} 34. Re1 {[%emt 0:00:24]} Qe8 {[%emt 0:01:27]} 35. Rxg4 {[%emt 0:00:19]} Qe6 {[%emt 0:00:45]} 36. Rg3 {[%emt 0:00:33]} Qe8 {[%emt 0:00:57]} 37. Rge3 {[%emt 0:00:13]} g4 {[%emt 0:01:54]} 38. d4 {[%emt 0:00:13]} exd4 {[%emt 0:01:03]} 39. Qxd4 {[%emt 0:01:40]} Qe6 {[%emt 0:01:03]} 40. Kb1 {[%emt 0:01:45]} Kg8 {[%emt 0:00:23]} 41. Rg1 {[%emt 0:00:55]} Rg6 {[%emt 0:00:12]} 42. Reg3 {[%emt 0:00:14]} Nf6 {[%emt 0:00:41]} 43. Ne3 {[%emt 0:01:03]} Kh7 {[%emt 0:01:34]} 44. e5 {[%emt 0:00:43]} Nd5 {[%emt 0:00:36]} 45. Nxg4 {[%emt 0:01:07]} Rf4 {[%emt 0:00:31]} 46. Qa7+ {[%emt 0:00:01]} Rf7 {[%emt 0:00:10]} 47. Qc5 {[%emt 0:00:05]} Qf5 {[%emt 0:01:18]} 48. Nf6+ {[%emt 0:01:20]} Rgxf6 {[%emt 0:00:23]} 49. exf6 {[%emt 0:00:08]} Rxf6 {[%emt 0:00:03]} 50. Qa7+ {[%emt 0:00:14]} Rf7 {[%emt 0:00:55]} 51. Rg7+ {[%emt 0:00:02]} Kxh6 {[%emt 0:00:17]} 52. Qxf7 {[%emt 0:00:05]} Qxf7 {[%emt 0:00:15]} 53. Rxf7 {[%emt 0:00:02]} Ne3 {[%emt 0:00:09]} 54. Rf3 {[%emt 0:00:07]} Nf5 {[%emt 0:00:14]} 55. Rh3+ {[%emt 0:00:03]} Nh4 {[%emt 0:00:04]} 56. Rxh4# {[%emt 0:04:03]} 1-0

[Event "FIDE World Cup G12-B 2024"]
[Site "Batumi"]
[Date "2024.06.26"]
[Round "4.2"]
[White "Pratitee Bordoloi"]
[Black "Abylaykyzy, Bibisara"]
[Result "1-0"]
[ECO "B90"]
[WhiteElo "1796"]
[BlackElo "1577"]
[Annotator "NA RC"]
[PlyCount "89"]
[EventDate "2024.06.23"]
[EventType "swiss"]
[EventCountry "GEO"]
[SourceTitle "playchess.com"]
[Source "ChessBase"]
[SourceQuality "1"]
[TimeControl "5400+30"]

1. e4 {[%emt 0:00:06]} c5 {[%emt 0:00:07]} 2. Nf3 {[%emt 0:00:06]} d6 {[%emt 0:00:03]} 3. d4 {[%emt 0:00:07]} cxd4 {[%emt 0:00:06]} 4. Nxd4 {[%emt 0:00:06]} Nf6 {[%emt 0:00:04]} 5. Nc3 {[%emt 0:00:09]} a6 {[%emt 0:00:04]} 6. h3 {[%emt 0:00:14]} e5 {[%emt 0:00:10]} 7. Nf3 {[%emt 0:00:08]} Qc7 {[%emt 0:00:06]} 8. a4 {[%emt 0:00:20]} h6 {[%emt 0:00:21]} 9. Be3 {[%emt 0:00:38]} Be6 {[%emt 0:00:43]} 10. Be2 {[%emt 0:00:47]} Nbd7 {[%emt 0:00:11]} 11. a5 {[%emt 0:01:37]} Be7 {[%emt 0:06:26]} 12. O-O {[%emt 0:00:44]} Qc6 {[%emt 0:02:33]} 13. Bd3 {[%emt 0:02:00]} d5 {[%emt 0:05:43]} 14. exd5 {[%emt 0:01:09]} Nxd5 {[%emt 0:00:09]} 15. Be4 {[%emt 0:04:33]} Nxc3 {[%emt 0:06:44]} 16. Bxc6 {[%emt 0:00:09]} Nxd1 {[%emt 0:00:04]} 17. Bxd7+ {[%emt 0:00:08]} Bxd7 {[%emt 0:00:04]} 18. Rfxd1 {[%emt 0:00:14]} e4 {[%emt 0:06:50]} 19. Nd2 {[%emt 0:05:29]} Bc6 {[%emt 0:08:03]} 20. Nc4 {[%emt 0:02:47]} Bf6 {[%emt 0:05:27]} 21. Bc5 {[%emt 0:03:34]} Be7 {[%emt 0:03:45]} 22. Bb6 {[%emt 0:02:30]} O-O {[%emt 0:03:30]} 23. Ne5 {[%emt 0:01:37]} Bd8 {[%emt 0:07:35]} 24. Nxc6 {[%emt 0:07:39]} bxc6 {[%emt 0:01:16]} 25. Rd6 {[%emt 0:00:30]} Rc8 {[%emt 0:02:14]} 26. Rad1 {[%emt 0:01:35]} Bf6 {[%emt 0:01:36]} 27. c3 {[%emt 0:01:55]} Bg5 {[%emt 0:06:13]} 28. Rd7 {[%emt 0:01:58]} f5 {[%emt 0:01:22]} 29. Ra7 {[%emt 0:02:14]} f4 {[%emt 0:00:11]} 30. Rdd7 {[%emt 0:00:59]} Bf6 {[%emt 0:00:21]} 31. Bd4 {[%emt 0:03:33]} g5 {[%emt 0:01:51]} 32. Bxf6 {[%emt 0:01:28]} Rxf6 {[%emt 0:00:05]} 33. Re7 {[%emt 0:00:09]} c5 {[%emt 0:03:46]} 34. Rxe4 {[%emt 0:00:37]} Rg6 {[%emt 0:02:44]} 35. Ree7 {[%emt 0:01:10]} Rgc6 {[%emt 0:00:32]} 36. Kf1 {[%emt 0:03:00]} Kf8 {[%emt 0:01:46]} 37. Rh7 {[%emt 0:01:37]} Kg8 {[%emt 0:00:23]} 38. Ke2 {[%emt 0:00:46]} Rb8 {[%emt 0:02:26]} 39. Rhb7 {[%emt 0:00:59]} Rxb7 {[%emt 0:02:55]} 40. Rxb7 {[%emt 0:00:09]} Kf8 {[%emt 0:01:06]} 41. Rb6 {[%emt 0:00:22]} Rc7 {[%emt 0:01:37]} 42. Rxh6 {[%emt 0:00:25]} Ra7 {[%emt 0:00:28]} 43. Rc6 {[%emt 0:00:31]} Rb7 {[%emt 0:00:10]} 44. Rb6 {[%emt 0:00:18]} Ra7 {[%emt 0:00:19]} 45. Kf3 {[%emt 0:00:09]} 1-0

[Event "FIDE World Cup G12-B 2024"]
[Site "Batumi"]
[Date "2024.06.26"]
[Round "4.3"]
[White "Bakhshizada, Asnad"]
[Black "Sreekarthika Velmurugan"]
[Result "0-1"]
[ECO "A11"]
[WhiteElo "1748"]
[BlackElo "1838"]
[Annotator "NA RC"]
[PlyCount "84"]
[EventDate "2024.06.23"]
[EventType "swiss"]
[EventCountry "GEO"]
[SourceTitle "playchess.com"]
[Source "ChessBase"]
[SourceQuality "1"]
[TimeControl "5400+30"]

1. Nf3 {[%emt 0:00:03]} d5 {[%emt 0:06:01]} 2. c4 {[%emt 0:00:16]} c6 {[%emt 0:00:06]} 3. g3 {[%emt 0:00:16]} Nf6 {[%emt 0:00:19]} 4. Bg2 {[%emt 0:02:28]} dxc4 {[%emt 0:06:02]} 5. Qc2 {[%emt 0:01:12]} b5 {[%emt 0:01:18]} 6. a4 {[%emt 0:00:18]} Bb7 {[%emt 0:01:04]} 7. O-O {[%emt 0:04:58]} e6 {[%emt 0:00:39]} 8. Nc3 {[%emt 0:02:17]} a6 {[%emt 0:02:14]} 9. Rd1 {[%emt 0:05:20]} Bc5 {[%emt 0:08:15]} 10. d4 {[%emt 0:01:19]} cxd3 {[%emt 0:09:01]} 11. Rxd3 {[%emt 0:01:11]} Qb6 {[%emt 0:00:36]} 12. e3 {[%emt 0:01:02]} (12. Ng5 $11 {keeps the balance.}) 12... Nbd7 {[%emt 0:01:07]} 13. b3 {[%emt 0:00:52]} O-O {[%emt 0:01:56]} 14. Bb2 {[%emt 0:01:19]} (14. Ne4 $15 {was preferrable.}) 14... Be7 {[%emt 0:02:01]} 15. Rdd1 {[%emt 0:03:20]} (15. Ne4 $15 {is superior.}) 15... Rfd8 {[%emt 0:02:34]} 16. a5 {[%emt 0:01:51]} Qc7 {[%emt 0:00:26]} 17. h4 {[%emt 0:14:07]} c5 {[%emt 0:02:21]} 18. Rdc1 {[%emt 0:08:00]} Rac8 $19 {[%emt 0:06:50]} 19. Re1 {[%emt 0:10:52]} b4 {[%emt 0:03:07]} 20. Ne2 {[%emt 0:03:28]} Be4 {[%emt 0:00:19]} 21. Qd1 {[%emt 0:06:41]} Qb7 {[%emt 0:00:20]} 22. Nf4 {[%emt 0:01:32]} Ne5 {[%emt 0:02:31]} 23. Nd2 {[%emt 0:00:18]} Bxg2 {[%emt 0:00:55]} 24. Bxe5 {[%emt 0:00:16]} Ne4 {[%emt 0:04:31]} 25. Qg4 {[%emt 0:00:56]} Bf6 {[%emt 0:07:37]} 26. Nxe4 {[%emt 0:04:28]} Bxe5 {[%emt 0:00:17]} 27. Nxg2 {[%emt 0:01:49]} Bxa1 {[%emt 0:02:34]} 28. Rxa1 {[%emt 0:00:11]} f5 {[%emt 0:00:44]} 29. Nf6+ {[%emt 0:01:15]} Kh8 {[%emt 0:00:11]} 30. Qc4 {[%emt 0:01:12]} gxf6 {[%emt 0:01:05]} 31. Qxe6 {[%emt 0:00:09]} Qc6 {[%emt 0:02:43]} 32. Qxf5 {[%emt 0:00:27]} Rd5 {[%emt 0:00:27]} 33. Qg4 {[%emt 0:00:46]} Rcd8 {[%emt 0:01:50]} 34. Nf4 {[%emt 0:00:15]} Rd2 {[%emt 0:01:51]} 35. Ne6 {[%emt 0:02:24]} Rg8 {[%emt 0:01:04]} 36. Qh3 {[%emt 0:00:50]} Re8 {[%emt 0:04:19]} 37. Nf4 {[%emt 0:00:38]} Red8 {[%emt 0:00:34]} 38. Rf1 {[%emt 0:00:40]} Rd1 {[%emt 0:02:12]} 39. Ne6 {[%emt 0:02:04]} Rxf1+ {[%emt 0:01:17]} 40. Kxf1 {[%emt 0:00:09]} Rd1+ {[%emt 0:00:55]} 41. Ke2 {[%emt 0:00:06]} Qd7 {[%emt 0:01:39]} 42. Qg4 {[%emt 0:00:47]} Rd6 {[%emt 0:00:53]} 0-1

[Event "FIDE World Cup G12-B 2024"]
[Site "Batumi"]
[Date "2024.06.26"]
[Round "4.4"]
[White "Pavithra R V"]
[Black "Bassari, Senem Gul"]
[Result "1-0"]
[ECO "A04"]
[WhiteElo "1614"]
[BlackElo "1768"]
[Annotator "NA RC"]
[PlyCount "114"]
[EventDate "2024.06.23"]
[EventType "swiss"]
[EventCountry "GEO"]
[SourceTitle "playchess.com"]
[Source "ChessBase"]
[SourceQuality "1"]
[TimeControl "5400+30"]

1. e4 {[%emt 0:00:02]} c5 {[%emt 0:00:14]} 2. Nf3 {[%emt 0:00:03]} d6 {[%emt 0:00:08]} 3. d3 {[%emt 0:00:04]} Nc6 {[%emt 0:00:41]} 4. g3 {[%emt 0:00:07]} g6 {[%emt 0:00:08]} 5. Bg2 {[%emt 0:00:02]} Bg7 {[%emt 0:00:10]} 6. c3 {[%emt 0:00:05]} e6 {[%emt 0:01:11]} 7. O-O {[%emt 0:00:08]} Nge7 {[%emt 0:00:09]} 8. Nbd2 {[%emt 0:01:32]} O-O {[%emt 0:00:40]} 9. Re1 {[%emt 0:00:07]} Rb8 {[%emt 0:01:29]} 10. a4 {[%emt 0:01:21]} a6 {[%emt 0:00:28]} 11. h4 {[%emt 0:01:37]} b5 {[%emt 0:02:36]} 12. axb5 {[%emt 0:00:10]} axb5 {[%emt 0:00:07]} 13. Nf1 {[%emt 0:01:53]} b4 {[%emt 0:00:42]} 14. Bd2 {[%emt 0:00:35]} bxc3 {[%emt 0:01:29]} 15. bxc3 {[%emt 0:00:08]} Qc7 {[%emt 0:01:43]} 16. h5 {[%emt 0:07:40]} Na5 {[%emt 0:10:08]} 17. hxg6 {[%emt 0:01:58]} fxg6 {[%emt 0:02:04]} 18. d4 {[%emt 0:07:16]} cxd4 {[%emt 0:06:45]} 19. cxd4 {[%emt 0:00:14]} Nb3 {[%emt 0:01:36]} 20. Ra4 {[%emt 0:03:19]} Bd7 {[%emt 0:14:21]} 21. Rb4 {[%emt 0:01:11]} Nxd2 {[%emt 0:04:07]} 22. Qxd2 {[%emt 0:00:22]} Rxb4 {[%emt 0:01:06]} 23. Qxb4 {[%emt 0:00:05]} Nc6 {[%emt 0:06:34]} 24. Qd2 {[%emt 0:00:34]} Qb6 {[%emt 0:06:11]} 25. Rd1 {[%emt 0:02:57]} Qb3 {[%emt 0:08:12]} 26. d5 {[%emt 0:08:08]} Ne5 {[%emt 0:05:59]} 27. Nd4 {[%emt 0:01:16]} Qb6 {[%emt 0:15:21]} 28. dxe6 {[%emt 0:01:38]} Ba4 {[%emt 0:04:36]} 29. e7 {[%emt 0:01:08]} Rf7 {[%emt 0:02:34]} 30. Ra1 {[%emt 0:05:13]} Be8 {[%emt 0:01:19]} 31. Ra8 {[%emt 0:08:36]} Rxe7 {[%emt 0:00:25]} 32. Qa2+ {[%emt 0:00:07]} Nf7 {[%emt 0:02:24]} 33. Nf3 {[%emt 0:03:46]} Bf8 {[%emt 0:00:47]} 34. Ne3 {[%emt 0:01:09]} Bc6 {[%emt 0:00:32]} 35. Ra6 {[%emt 0:00:55]} Qb7 {[%emt 0:00:23]} 36. Ng5 {[%emt 0:01:52]} Bh6 {[%emt 0:00:36]} 37. Nxf7 {[%emt 0:00:35]} Rxf7 {[%emt 0:00:01]} 38. Nc4 {[%emt 0:02:24]} Bf8 {[%emt 0:00:52]} 39. Rb6 {[%emt 0:01:31]} Qc7 {[%emt 0:00:33]} 40. Bh3 {[%emt 0:02:43]} Kh8 {[%emt 0:00:32]} 41. Qb2+ {[%emt 0:00:34]} Rg7 {[%emt 0:00:16]} 42. Qf6 {[%emt 0:01:01]} Be7 {[%emt 0:00:42]} 43. Qd4 {[%emt 0:00:22]} h6 {[%emt 0:00:31]} 44. f4 {[%emt 0:07:41]} d5 {[%emt 0:00:32]} 45. Na5 {[%emt 0:07:58]} Be8 {[%emt 0:00:24]} 46. Nb3 {[%emt 0:00:11]} dxe4 {[%emt 0:00:32]} 47. Re6 {[%emt 0:00:43]} Bf7 {[%emt 0:00:24]} 48. Qb6 {[%emt 0:04:21]} Qd7 {[%emt 0:00:35]} 49. Nd4 {[%emt 0:05:16]} Bxe6 {[%emt 0:00:32]} 50. Nxe6 {[%emt 0:00:11]} Qd1+ {[%emt 0:00:27]} 51. Kh2 {[%emt 0:00:41]} Qd2+ {[%emt 0:00:19]} 52. Bg2 {[%emt 0:00:19]} Rf7 {[%emt 0:00:43]} 53. Qc6 {[%emt 0:00:20]} Kh7 {[%emt 0:00:36]} 54. Qe8 {[%emt 0:02:25]} Rg7 {[%emt 0:00:29]} 55. Nxg7 {[%emt 0:00:19]} Qd6 {[%emt 0:00:31]} 56. Qf7 {[%emt 0:00:41]} Kh8 {[%emt 0:00:26]} 57. Ne6 {[%emt 0:00:13]} Bf8 {[%emt 0:00:35]} 1-0

[Event "FIDE World Cup G12-B 2024"]
[Site "Batumi"]
[Date "2024.06.26"]
[Round "4.5"]
[White "Li, Sophie"]
[Black "Shomanova, Adiya"]
[Result "1-0"]
[ECO "C63"]
[WhiteElo "1764"]
[BlackElo "1542"]
[Annotator "NA RC"]
[PlyCount "79"]
[EventDate "2024.06.23"]
[EventType "swiss"]
[EventCountry "GEO"]
[SourceTitle "playchess.com"]
[Source "ChessBase"]
[SourceQuality "1"]
[TimeControl "5400+30"]

1. e4 {[%emt 0:00:05]} e5 {[%emt 0:00:12]} 2. Nf3 {[%emt 0:00:14]} Nc6 {[%emt 0:00:11]} 3. Bb5 {[%emt 0:00:28]} f5 {[%emt 0:00:14]} 4. Qe2 {[%emt 0:00:35]} d6 {[%emt 0:00:40]} 5. d4 {[%emt 0:03:24]} exd4 {[%emt 0:08:52]} 6. Nxd4 {[%emt 0:01:15]} Bd7 {[%emt 0:14:56]} 7. exf5+ {[%emt 0:01:44]} Nge7 {[%emt 0:05:10]} 8. Qh5+ {[%emt 0:02:32]} g6 {[%emt 0:02:11]} 9. fxg6 {[%emt 0:00:50]} Nxg6 {[%emt 0:00:45]} 10. Bg5 {[%emt 0:00:54]} Be7 {[%emt 0:03:07]} 11. Nxc6 {[%emt 0:00:51]} bxc6 {[%emt 0:02:38]} 12. Bd3 {[%emt 0:00:48]} Bxg5 {[%emt 0:12:17]} 13. Bxg6+ {[%emt 0:00:45]} Kf8 {[%emt 0:00:52]} 14. O-O {[%emt 0:03:23]} Qf6 {[%emt 0:12:28]} 15. f4 {[%emt 0:03:17]} hxg6 {[%emt 0:04:54]} 16. Qxg5 {[%emt 0:00:49]} Qxb2 {[%emt 0:04:16]} 17. Nd2 {[%emt 0:02:28]} Qd4+ {[%emt 0:01:15]} 18. Kh1 {[%emt 0:00:12]} Qxd2 {[%emt 0:01:04]} 19. Qf6+ {[%emt 0:00:24]} Kg8 {[%emt 0:00:58]} 20. Qxg6+ {[%emt 0:00:31]} Kf8 {[%emt 0:00:13]} 21. Qf6+ {[%emt 0:01:04]} Kg8 {[%emt 0:00:25]} 22. Rf3 {[%emt 0:00:44]} Bg4 {[%emt 0:16:19]} 23. Rg3 {[%emt 0:00:22]} Qe2 {[%emt 0:00:52]} 24. Qg6+ {[%emt 0:00:33]} Kf8 {[%emt 0:00:07]} 25. Rxg4 {[%emt 0:00:29]} Qe7 {[%emt 0:01:44]} 26. Rg5 {[%emt 0:00:30]} Qh7 {[%emt 0:02:56]} 27. Rf5+ {[%emt 0:00:13]} Ke7 {[%emt 0:00:12]} 28. Re1+ {[%emt 0:00:07]} Kd8 {[%emt 0:00:20]} 29. Qxh7 {[%emt 0:00:53]} Rxh7 {[%emt 0:00:09]} 30. Rf8+ {[%emt 0:00:02]} Kd7 {[%emt 0:00:21]} 31. Rxa8 {[%emt 0:00:05]} d5 {[%emt 0:00:18]} 32. g4 {[%emt 0:00:08]} c5 {[%emt 0:00:13]} 33. f5 {[%emt 0:00:06]} d4 {[%emt 0:00:13]} 34. f6 {[%emt 0:00:12]} c4 {[%emt 0:00:15]} 35. Re7+ {[%emt 0:00:13]} Rxe7 {[%emt 0:00:07]} 36. fxe7 {[%emt 0:00:03]} Kxe7 {[%emt 0:00:15]} 37. Kg2 {[%emt 0:00:03]} d3 {[%emt 0:00:52]} 38. cxd3 {[%emt 0:00:43]} c3 {[%emt 0:00:09]} 39. Rxa7 {[%emt 0:00:04]} Kd6 {[%emt 0:00:21]} 40. Ra3 {[%emt 0:00:04]} 1-0

[Event "FIDE World Cup G12-B 2024"]
[Site "Batumi"]
[Date "2024.06.26"]
[Round "4.6"]
[White "Amin-Erdene, Tsengel"]
[Black "Xu, Luna Yuexiu"]
[Result "1/2-1/2"]
[ECO "E63"]
[WhiteElo "1491"]
[BlackElo "1761"]
[Annotator "NA RC"]
[PlyCount "149"]
[EventDate "2024.06.23"]
[EventType "swiss"]
[EventCountry "GEO"]
[SourceTitle "playchess.com"]
[Source "ChessBase"]
[SourceQuality "1"]
[TimeControl "5400+30"]

1. d4 {[%emt 0:00:04]} Nf6 {[%emt 0:00:12]} 2. c4 {[%emt 0:00:16]} g6 {[%emt 0:00:14]} 3. g3 {[%emt 0:00:40]} Bg7 {[%emt 0:00:27]} 4. Bg2 {[%emt 0:00:31]} O-O {[%emt 0:01:05]} 5. Nf3 {[%emt 0:00:34]} d6 {[%emt 0:00:39]} 6. O-O {[%emt 0:00:40]} Nc6 {[%emt 0:00:31]} 7. Nc3 {[%emt 0:01:31]} a6 {[%emt 0:01:18]} 8. b3 {[%emt 0:05:46]} Rb8 {[%emt 0:04:53]} 9. a4 {[%emt 0:04:02]} Na5 {[%emt 0:07:28]} 10. Bb2 {[%emt 0:13:31]} c5 {[%emt 0:07:18]} 11. d5 {[%emt 0:06:41]} Qb6 {[%emt 0:07:28]} 12. Nd2 {[%emt 0:02:06]} e5 {[%emt 0:03:34]} 13. Rb1 {[%emt 0:04:07]} Bd7 {[%emt 0:05:00]} 14. Ba3 {[%emt 0:02:51]} Rfc8 {[%emt 0:02:22]} 15. e4 {[%emt 0:06:17]} Qc7 {[%emt 0:01:07]} 16. Qe2 {[%emt 0:01:58]} b6 {[%emt 0:02:27]} 17. Rb2 {[%emt 0:12:51]} Ne8 {[%emt 0:07:28]} 18. Rfb1 {[%emt 0:02:21]} Bh6 {[%emt 0:01:43]} 19. Rc2 {[%emt 0:06:27]} Nb7 {[%emt 0:02:47]} 20. Bc1 {[%emt 0:01:27]} Bg7 {[%emt 0:02:40]} 21. Nf1 {[%emt 0:01:58]} Nd8 {[%emt 0:01:34]} 22. f4 {[%emt 0:02:08]} exf4 {[%emt 0:02:14]} 23. gxf4 {[%emt 0:01:05]} b5 {[%emt 0:02:05]} 24. axb5 {[%emt 0:02:00]} Bxc3 {[%emt 0:00:40]} 25. Rxc3 {[%emt 0:00:30]} axb5 {[%emt 0:00:12]} 26. cxb5 {[%emt 0:01:58]} Bxb5 {[%emt 0:00:37]} 27. Qf2 {[%emt 0:02:23]} Qe7 {[%emt 0:01:55]} 28. f5 {[%emt 0:02:52]} Rc7 {[%emt 0:06:13]} 29. fxg6 {[%emt 0:02:13]} fxg6 {[%emt 0:00:31]} 30. Ng3 {[%emt 0:01:55]} Nf7 {[%emt 0:01:09]} 31. Bh3 {[%emt 0:01:27]} Bd7 {[%emt 0:00:54]} 32. Bxd7 {[%emt 0:01:16]} Qxd7 {[%emt 0:00:29]} 33. Bd2 {[%emt 0:02:19]} c4 {[%emt 0:04:44]} 34. b4 {[%emt 0:00:36]} Ne5 {[%emt 0:00:45]} 35. Rf1 {[%emt 0:01:36]} Ng7 {[%emt 0:00:59]} 36. Ra3 {[%emt 0:01:08]} Rbc8 {[%emt 0:01:52]} 37. Bc3 {[%emt 0:00:36]} Nd3 {[%emt 0:01:29]} 38. Qf6 {[%emt 0:00:30]} Qe7 {[%emt 0:02:36]} 39. Qxe7 {[%emt 0:00:47]} Rxe7 {[%emt 0:00:05]} 40. Ra6 {[%emt 0:00:16]} Ne8 {[%emt 0:00:35]} 41. Rfa1 {[%emt 0:01:45]} Nc7 {[%emt 0:01:29]} 42. Rc6 {[%emt 0:00:44]} Rf8 {[%emt 0:01:12]} 43. Rxc4 {[%emt 0:00:46]} h5 {[%emt 0:00:26]} 44. Rf1 {[%emt 0:01:26]} Rxf1+ {[%emt 0:02:16]} 45. Nxf1 {[%emt 0:00:21]} Nb5 {[%emt 0:01:00]} 46. Bd2 {[%emt 0:01:16]} Ne5 {[%emt 0:00:50]} 47. Rc8+ {[%emt 0:00:40]} Kf7 {[%emt 0:00:40]} 48. Bc3 {[%emt 0:00:52]} Nd7 {[%emt 0:01:17]} 49. Nd2 {[%emt 0:01:34]} Nb6 {[%emt 0:02:06]} 50. Rc6 {[%emt 0:00:08]} Rb7 {[%emt 0:02:04]} 51. Ba1 {[%emt 0:00:44]} Nd7 {[%emt 0:00:41]} 52. Nc4 {[%emt 0:00:21]} Ke7 {[%emt 0:01:08]} 53. e5 {[%emt 0:00:20]} Nxe5 {[%emt 0:01:33]} 54. Nxe5 {[%emt 0:00:31]} dxe5 {[%emt 0:00:06]} 55. Bxe5 {[%emt 0:00:06]} Na3 {[%emt 0:01:35]} 56. Rc7+ {[%emt 0:00:36]} Rxc7 {[%emt 0:00:09]} 57. Bxc7 {[%emt 0:00:05]} Nb5 {[%emt 0:00:18]} 58. Be5 {[%emt 0:00:17]} Na3 {[%emt 0:00:52]} 59. Kf2 {[%emt 0:00:28]} Nc4 {[%emt 0:00:15]} 60. Bg3 {[%emt 0:00:36]} g5 {[%emt 0:01:02]} 61. Kf3 {[%emt 0:00:43]} Nd2+ {[%emt 0:01:21]} 62. Ke2 {[%emt 0:00:29]} Ne4 {[%emt 0:00:15]} 63. Be5 {[%emt 0:00:15]} Nd6 {[%emt 0:01:24]} 64. Kd3 {[%emt 0:00:57]} h4 {[%emt 0:00:57]} 65. h3 {[%emt 0:01:25]} Nf7 {[%emt 0:01:03]} 66. Bh2 {[%emt 0:00:21]} Nh6 {[%emt 0:00:35]} 67. b5 {[%emt 0:00:28]} Kd7 {[%emt 0:00:35]} 68. b6 {[%emt 0:00:27]} Kc8 {[%emt 0:00:05]} 69. d6 {[%emt 0:00:26]} Kb7 {[%emt 0:01:27]} 70. d7 {[%emt 0:01:12]} Nf7 {[%emt 0:00:05]} 71. Bc7 {[%emt 0:00:08]} g4 {[%emt 0:00:38]} 72. d8=Q {[%emt 0:00:17]} Nxd8 {[%emt 0:00:03]} 73. Bxd8 {[%emt 0:00:05]} gxh3 {[%emt 0:00:15]} 74. Bc7 {[%emt 0:00:08]} h2 {[%emt 0:00:04]} 75. Bxh2 {[%emt 0:00:06]} 1/2-1/2

[Event "FIDE World Cup G12-B 2024"]
[Site "Batumi"]
[Date "2024.06.26"]
[Round "4.7"]
[White "Tereshchenko, Eliza"]
[Black "QUICKPEN, Deborah Ebimobo-ere"]
[Result "1/2-1/2"]
[ECO "B13"]
[WhiteElo "1694"]
[BlackElo "2048"]
[Annotator "RC"]
[PlyCount "49"]
[EventDate "2024.06.23"]
[EventType "swiss"]
[EventCountry "GEO"]
[SourceTitle "playchess.com"]
[Source "ChessBase"]
[SourceQuality "1"]
[TimeControl "5400+30"]

1. d4 {[%emt 0:00:02]} Nf6 {[%emt 0:05:33]} 2. Bf4 {[%emt 0:00:08]} d5 {[%emt 0:00:28]} 3. e3 {[%emt 0:00:08]} Bg4 {[%emt 0:00:04]} 4. Nf3 {[%emt 0:00:12]} e6 {[%emt 0:00:36]} 5. Bd3 {[%emt 0:01:58]} c5 {[%emt 0:00:26]} 6. c3 {[%emt 0:00:56]} Nc6 {[%emt 0:00:08]} 7. Nbd2 {[%emt 0:00:49]} cxd4 {[%emt 0:00:59]} 8. exd4 {[%emt 0:04:20]} Bd6 {[%emt 0:02:14]} 9. Bg3 {[%emt 0:02:39]} O-O {[%emt 0:00:37]} 10. O-O {[%emt 0:01:46]} Nh5 {[%emt 0:02:36]} 11. Bxd6 {[%emt 0:04:25]} Qxd6 {[%emt 0:00:20]} 12. Bxh7+ {[%emt 0:02:23]} Kxh7 {[%emt 0:01:28]} 13. Ng5+ {[%emt 0:00:08]} Kg6 {[%emt 0:00:12]} 14. Qxg4 {[%emt 0:00:10]} Nf6 {[%emt 0:00:15]} 15. Nge4+ {[%emt 0:00:54]} Nxg4 {[%emt 0:00:05]} 16. Nxd6 {[%emt 0:00:03]} a6 {[%emt 0:01:06]} 17. Nxb7 {[%emt 0:02:19]} Rfb8 {[%emt 0:00:08]} 18. Nc5 {[%emt 0:00:23]} Rxb2 {[%emt 0:00:05]} 19. Ncb3 {[%emt 0:04:34]} a5 {[%emt 0:01:21]} 20. Rfb1 {[%emt 0:07:44]} Rc2 {[%emt 0:01:57]} 21. Rc1 {[%emt 0:02:34]} Rb2 {[%emt 0:00:15]} 22. Rcb1 {[%emt 0:05:12]} Rc2 {[%emt 0:00:36]} 23. Rc1 {[%emt 0:03:09]} Rb2 {[%emt 0:05:22]} 24. Rcb1 {[%emt 0:18:48]} Rc2 {[%emt 0:05:15]} 25. Rc1 {[%emt 0:37:16]} 1/2-1/2